bitfinex/quotes_ETHUSD_20240721
["timestamp","ask_amount","ask_price","bid_price","bid_amount"]
[1721571266665,0.65042464,3506.1,3505.7,2.85245]
[1721571267463,0.65042464,3506.1,3505.5,2.85265]
[1721571267977,0.65042464,3506.1,3505.6,2.85256]
[1721571270828,0.65042464,3506.1,3505.7,2.85245]
[1721571271674,0.65042464,3506.1,3505.5,2.85265]
[1721571272231,0.65042464,3506.1,3505.3,2.85278]
[1721571272476,0.65042464,3506.1,3505.8,2.85236]
[1721571272684,0.10042464,3506.1,3505.8,2.85236]
[1721571277267,0.10042464,3506.1,3505.9,2.8523]
[1721571279559,0.10042464,3506.1,3505.7,2.85244]
[1721571280467,0.10042464,3506.1,3505.4,5.27503]
[1721571280664,0.10042464,3506.1,3505.7,2.85247]
[1721571281365,0.55,3506.0,3505.4,2.85273]
[1721571281774,0.0970791,3505.9,3505.4,2.85273]
[1721571282270,0.0970791,3505.9,3505.5,0.99184032]
[1721571282471,0.2984221,3505.8,3505.4,2.85273]
[1721571282728,0.2984221,3505.8,3505.2,2.85289]
[1721571282729,0.55,3505.7,3505.2,2.85289]
[1721571283010,0.55,3505.7,3505.3,2.47973126]
[1721571283215,0.55,3505.7,3505.2,2.85289]
[1721571283371,0.55,3505.7,3505.0,2.85305]
[1721571283571,0.09705346,3505.6,3505.1,5.33280371]
[1721571283766,0.09705346,3505.6,3505.1,2.85298]
[1721571284067,0.55,3505.7,3505.1,2.85298]
[1721571284286,0.0969899,3505.5,3505.1,2.85298]
[1721571284482,0.09700219,3505.6,3505.2,2.8529]
[1721571284721,0.09700219,3505.6,3505.3,2.85279]
[1721571287007,0.09700219,3505.6,3505.1,2.85295]
[1721571287315,0.55,3505.7,3505.2,0.99192865]
[1721571287485,0.55,3505.7,3505.1,2.85295]
[1721571287704,0.09700509,3505.6,3505.2,3.84482045]
[1721571287900,0.09700509,3505.6,3505.2,2.85289]
[1721571288421,0.55,3505.7,3505.2,2.85289]
[1721571288582,0.09700509,3505.6,3505.2,2.85289]
[1721571289099,0.55,3505.7,3505.2,2.85289]
[1721571289300,0.09699281,3505.5,3505.2,2.85289]
[1721571289482,0.09700509,3505.6,3505.0,4.36807348]
[1721571289684,0.55,3505.7,3505.1,2.47979961]
[1721571289895,0.09699281,3505.5,3505.2,0.99191984]
[1721571290223,0.55,3505.7,3505.0,2.85301]
[1721571290384,0.09698052,3505.4,3505.1,0.9919394]
[1721571290575,0.55,3505.7,3505.0,2.85301]
[1721571290970,0.09700509,3505.6,3505.1,2.85297]
[1721571291200,0.55,3505.5,3505.1,2.85297]
[1721571291842,0.55,3505.7,3505.1,2.85297]
[1721571292007,1.45118382,3505.7,3505.1,2.85297]
[1721571292901,0.55,3505.7,3505.1,2.85297]
[1721571293103,0.55,3505.7,3505.2,2.85288]
[1721571293304,0.09700509,3505.6,3505.2,2.85288]
[1721571293609,0.2984221,3505.8,3505.1,3.48327211]
[1721571293610,0.55,3505.5,3505.3,2.85282]
[1721571293802,0.55,3505.5,3505.4,2.85274]
[1721571294004,0.2984221,3505.8,3505.4,2.85274]
[1721571294005,0.55,3505.7,3505.4,2.85274]
[1721571294238,0.55,3505.7,3505.2,2.85284]
[1721571294450,0.55,3505.7,3505.3,2.85276]
[1721571297731,0.2984221,3505.8,3505.6,2.85256]
[1721571298131,0.2984221,3505.8,3505.3,2.85279]
[1721571299045,0.55,3505.7,3505.3,2.85279]
[1721571299249,0.55,3505.7,3505.1,3.48327211]
[1721571299731,0.0964068,3505.6,3505.1,3.48327211]
[1721571299936,0.0964068,3505.6,3505.2,2.85285]
[1721571300923,0.0964068,3505.6,3505.4,2.85272]
[1721571301145,0.0964068,3505.6,3505.4,2.85267]
[1721571302667,0.0964068,3505.6,3505.5,2.85266]
[1721571302889,0.2984221,3505.8,3505.6,2.85254]
[1721571303173,0.2984221,3505.8,3505.4,2.85269]
[1721571304475,0.2984221,3505.8,3505.3,2.85281]
[1721571304945,0.2984221,3505.8,3505.4,2.85273]
[1721571306667,0.2984221,3505.8,3505.2,0.63027411]
[1721571306867,0.2984221,3505.8,3505.1,2.85291]
[1721571306868,0.2984221,3505.8,3505.3,1.64402891]
[1721571307181,0.2984221,3505.8,3505.4,2.85273]
[1721571307343,0.2984221,3505.8,3505.3,0.65213152]
[1721571307538,0.2984221,3505.8,3505.4,0.991856]
[1721571307873,0.2984221,3505.8,3505.5,2.85262]
[1721571309577,0.2984221,3505.8,3505.6,2.85256]
[1721571309960,0.2984221,3505.8,3505.4,2.85274]
[1721571310282,0.2984221,3505.8,3505.5,2.85265]
[1721571310440,0.2984221,3505.8,3505.6,2.85256]
[1721571312102,0.2984221,3505.8,3505.1,3.44980111]
[1721571312250,0.2984221,3505.8,3505.2,5.33263637]
[1721571312251,0.55,3505.7,3505.2,5.33263637]
[1721571312453,0.55,3505.7,3505.1,0.9963722]
[1721571312454,0.55,3505.7,3505.3,2.85281]
[1721571312678,0.55,3505.7,3505.1,3.8492822]
[1721571312987,0.55,3505.7,3505.2,3.8447945]
[1721571313187,0.55,3505.7,3505.2,2.85288]
[1721571314767,0.09640203,3505.6,3505.3,2.85281]
[1721571315086,0.09640203,3505.6,3505.2,3.82692333]
[1721571315385,0.2984221,3505.8,3505.6,2.85257]
[1721571315775,0.0964237,3505.7,3505.6,2.85257]
[1721571315979,0.2984221,3505.8,3505.6,2.85257]
[1721571316284,0.0964237,3505.7,3505.6,2.85257]
[1721571316686,0.2984221,3505.8,3505.6,2.85257]
[1721571316863,0.2984221,3505.8,3505.7,2.85249]
[1721571318597,0.2984221,3505.8,3505.7,7.97108]
[1721571318801,0.2984221,3505.8,3505.7,11.04739959]
[1721571319169,0.2984221,3505.8,3505.7,10.45056848]
[1721571319398,0.2984221,3505.8,3505.7,12.04682232]
[1721571320718,0.2984221,3505.8,3505.7,12.04646612]
[1721571321210,0.2984221,3505.8,3505.7,12.64498152]
[1721571322460,3.60880614,3507.0,3505.7,12.64498152]
[1721571322461,0.90118382,3507.1,3506.9,2.85145]
[1721571322642,3.60880614,3507.4,3506.8,2.85153]
[1721571322643,0.90118382,3507.3,3506.8,2.85153]
[1721571322963,0.29836258,3507.1,3506.9,2.85152]
[1721571323118,0.29836258,3507.1,3507.0,2.85143]
[1721571323544,0.29836258,3507.1,3507.0,5.70286]
[1721571323868,0.29836258,3507.1,3507.0,6.10821975]
[1721571326877,0.29836258,3507.1,3507.0,11.22574975]
[1721571327418,3.0,3508.4,3507.4,2.85104]
[1721571327619,0.55,3508.4,3507.4,2.85104]
[1721571327820,3.55,3508.4,3507.4,2.85104]
[1721571328059,0.2983056,3508.3,3507.6,2.85093]
[1721571328372,0.55,3508.2,3507.8,2.85072]
[1721571328666,0.55,3508.2,3507.9,2.85068]
[1721571329169,0.55,3508.2,3507.5,2.85102]
[1721571329315,0.55,3508.2,3507.4,2.8511]
[1721571329519,0.55,3508.2,3507.5,2.851]
[1721571329821,0.55,3508.2,3507.6,2.85094]
[1721571330117,0.55,3508.2,3507.7,2.85083]
[1721571330522,0.2983056,3508.3,3507.6,2.836312]
[1721571330830,0.2983056,3508.3,3507.6,2.2661]
[1721571331029,0.09375962,3508.2,3508.1,2.85054]
[1721571331358,0.2983056,3508.3,3508.2,2.85046]
[1721571333763,0.2983056,3508.3,3508.0,2.8506]
[1721571334169,0.2983056,3508.3,3507.9,2.8507]
[1721571334321,0.2983056,3508.3,3508.0,2.85062]
[1721571334524,0.2983056,3508.3,3507.8,2.85078]
[1721571334732,0.2983056,3508.3,3507.9,2.85069]
[1721571334957,0.2983056,3508.3,3507.8,0.511688]
[1721571335323,0.2983056,3508.3,3508.0,2.85054]
[1721571335526,0.2983056,3508.3,3507.9,2.85068]
[1721571336688,0.2983056,3508.3,3508.0,2.85061]
[1721571336975,0.2983056,3508.3,3507.8,3.362468]
[1721571337266,0.2983056,3508.3,3507.9,0.8479498]
[1721571337628,0.2983056,3508.3,3507.9,3.6986498]
[1721571338639,0.2983056,3508.3,3508.0,2.85062]
[1721571340798,0.2983056,3508.3,3507.8,3.362458]
[1721571340965,0.2983056,3508.3,3507.4,7.28]
[1721571340966,0.2983056,3508.3,3507.5,2.85101]
[1721571341158,0.55,3508.2,3507.4,7.28]
[1721571341518,0.55,3508.2,3506.7,2.85162]
[1721571341519,2.4192,3508.1,3506.7,2.85162]
[1721571341702,0.32675056,3508.0,3506.6,2.85169]
[1721571341858,0.87675056,3508.0,3506.7,2.85161]
[1721571342066,0.09200303,3507.9,3506.8,2.85152]
[1721571342253,0.55,3507.8,3507.0,2.85143]
[1721571342581,0.55,3507.8,3506.7,2.8516]
[1721571342582,0.09194605,3507.7,3507.1,2.85134]
[1721571342790,0.09194605,3507.7,3507.2,2.85124]
[1721571342963,0.55,3507.6,3507.2,2.85124]
[1721571343299,0.84827817,3507.6,3507.2,2.85124]
[1721571344510,0.29827817,3507.6,3507.3,0.05702176]
[1721571344683,0.29827817,3507.6,3507.5,2.85103]
[1721571346102,0.29827817,3507.6,3507.5,5.70206]
[1721571348461,0.29827817,3507.6,3507.5,2.85103]
[1721571348694,0.29827817,3507.6,3507.4,2.8511]
[1721571349717,0.29827817,3507.6,3507.5,2.85103]
[1721571350369,0.29827817,3507.6,3507.5,5.70206]
[1721571352681,0.29827817,3507.6,3507.5,8.13976]
[1721571352900,0.29827817,3507.6,3507.5,13.84182]
[1721571353125,2.4935,3509.6,3508.2,2.4377]
[1721571353433,2.4935,3509.6,3508.7,2.84999]
[1721571353434,0.39027208,3509.5,3508.7,2.84999]
[1721571353597,0.09205925,3509.5,3508.5,2.8502]
[1721571353796,0.09205925,3509.5,3508.6,2.85011]
[1721571353996,0.27391066,3509.4,3508.6,2.85011]
[1721571355215,0.27391066,3509.4,3508.6,2.8489855]
[1721571355531,0.08918861,3509.3,3508.6,2.8489855]
[1721571355682,0.27391066,3509.4,3508.6,2.8489855]
[1721571355878,0.63918861,3509.3,3508.6,2.8489855]
[1721571356304,0.55,3509.3,3508.6,2.8489855]
[1721571356483,0.55,3509.3,3508.3,0.24377]
[1721571356686,0.88174107,3509.3,3508.3,3.09413]
[1721571356916,0.08917634,3509.2,3508.3,0.24377]
[1721571357082,0.88174107,3509.3,3508.1,2.85048]
[1721571357083,0.55,3509.1,3508.1,2.85048]
[1721571357612,2.3101,3509.1,3508.1,2.85048]
[1721571357815,0.55,3509.0,3508.1,2.85048]
[1721571358288,0.55,3509.0,3508.2,2.85043]
[1721571359626,0.55,3509.0,3507.8,2.2952]
[1721571359627,0.55,3509.0,3508.3,2.85037]
[1721571359924,0.08919147,3508.9,3508.5,2.85018]
[1721571360133,0.55,3508.8,3508.4,2.85028]
[1721571360286,0.08916694,3508.7,3508.4,2.85028]
[1721571360494,0.55,3508.6,3508.3,0.570091]
[1721571360796,0.08913217,3508.5,3508.1,2.85054]
[1721571361001,0.08913217,3508.5,3507.9,2.85069]
[1721571361192,0.55,3508.8,3508.1,2.85052]
[1721571361386,0.55,3508.8,3508.2,2.85045]
[1721571361586,0.55,3509.0,3508.2,2.85045]
[1721571362087,0.83601,3509.0,3508.2,2.85045]
[1721571363438,0.83601,3509.0,3508.4,2.85024]
[1721571363647,0.55,3509.0,3508.4,2.85024]
[1721571363807,0.08918592,3508.9,3508.3,2.85037]
[1721571364004,2.3101,3509.6,3508.5,2.85015]
[1721571364448,0.0892147,3509.5,3508.5,2.85015]
[1721571364606,0.0892147,3509.5,3508.8,2.84997]
[1721571365147,0.0892147,3509.5,3508.9,2.84983]
[1721571365364,2.3101,3509.6,3508.9,2.84983]
[1721571365919,3.0,3510.0,3508.9,0.569987]
[1721571366264,0.29819144,3510.1,3509.5,2.8494]
[1721571366265,0.08923215,3509.6,3509.5,2.8494]
[1721571366716,0.29819144,3510.1,3509.5,2.8494]
[1721571367242,0.29819144,3510.1,3509.3,2.84954]
[1721571367556,0.29819144,3510.1,3509.5,2.84934]
[1721571367942,0.29819144,3510.1,3509.6,2.84932]
[1721571368243,2.3122,3510.6,3509.6,3.4248984]
[1721571368447,2.3122,3510.6,3509.6,3.48188175]
[1721571368651,0.29813867,3510.7,3509.6,8.66020175]
[1721571368978,1.19650614,3511.5,3509.6,8.66020175]
[1721571368979,2.3122,3511.5,3510.5,2.84859]
[1721571369104,20.758,3512.0,3510.6,0.05696007]
[1721571369105,0.29808026,3511.8,3510.6,0.05696007]
[1721571369307,0.29808026,3511.8,3510.7,2.84835]
[1721571369721,0.08663749,3511.7,3510.7,2.84835]
[1721571370019,13.278,3512.0,3510.9,2.84826]
[1721571370228,0.08658681,3511.6,3511.2,2.84802]
[1721571370431,13.278,3512.0,3511.3,2.84792]
[1721571370641,0.08660018,3511.5,3511.1,2.8481]
[1721571371086,13.278,3512.0,3511.0,0.284826]
[1721571371374,0.08693453,3511.9,3510.6,7.28]
[1721571371529,0.08693453,3511.9,3510.8,2.84828]
[1721571371726,0.08693453,3511.9,3511.1,2.8481]
[1721571371929,0.08693453,3511.9,3511.2,2.84801]
[1721571372164,0.08693453,3511.9,3511.3,0.05695416]
[1721571372329,0.08693453,3511.9,3511.6,2.8477]
[1721571372524,0.08693453,3511.9,3511.4,3.13835642]
[1721571372752,0.08693453,3511.9,3511.4,0.29049642]
[1721571372962,0.08693453,3511.9,3511.0,2.84814]
[1721571373269,0.08693453,3511.9,3510.6,10.28]
[1721571373270,0.08693453,3511.9,3510.8,2.8483]
[1721571373475,13.278,3512.0,3510.6,13.1285]
[1721571373778,2.3122,3511.9,3510.6,7.28]
[1721571373959,5.8622,3511.9,3510.6,7.28]
[1721571374166,2.00112383,3511.8,3510.6,7.28]
[1721571374330,0.55,3511.7,3510.0,7.28]
[1721571374530,0.55,3511.7,3509.6,3.4248984]
[1721571374531,0.08707934,3511.6,3509.6,3.4248984]
[1721571374733,2.84787,3511.4,3509.6,3.4248984]
[1721571375031,3.08690259,3511.3,3509.7,2.84923]
[1721571375341,2.3122,3511.1,3509.5,2.84939]
[1721571375546,2.3122,3511.1,3509.2,2.84964]
[1721571375547,0.0868424,3511.0,3509.2,2.84964]
[1721571375768,0.6368424,3511.0,3509.3,2.84951]
[1721571376066,3.6368424,3511.0,3509.7,2.84916]
[1721571376272,3.6368424,3511.0,3509.8,2.84916]
[1721571376273,0.63127327,3510.9,3509.8,2.84916]
[1721571376427,0.55,3510.8,3509.7,3.134076]
[1721571376636,0.63670547,3510.8,3510.1,2.84889]
[1721571376968,0.63670547,3510.8,3510.2,2.84876]
[1721571377267,0.63670547,3510.8,3510.3,2.84872]
[1721571377471,0.08670547,3510.8,3510.3,2.84869]
[1721571377628,5.3241,3511.7,3510.4,0.284869]
[1721571378103,0.08686045,3511.6,3510.4,0.284869]
[1721571378706,0.08686045,3511.6,3510.4,2.84864]
[1721571378876,0.55,3511.5,3510.1,2.84885]
[1721571379062,0.55,3511.5,3510.5,2.84859]
[1721571379270,0.08683689,3511.4,3509.9,5.11477]
[1721571379486,0.55,3511.3,3509.9,5.11477]
[1721571379695,0.55,3511.3,3510.0,0.5399686]
[1721571379858,0.08683114,3511.2,3510.0,0.5399686]
[1721571380071,0.55,3511.1,3510.0,3.3889586]
[1721571380422,0.55,3511.1,3510.1,0.05696846]
[1721571380716,0.55,3511.1,3510.5,2.84855]
[1721571380861,5.3241,3511.7,3510.7,2.84842]
[1721571381063,0.55,3511.6,3510.8,0.05696178]
[1721571381261,0.63687184,3511.6,3510.7,2.84843]
[1721571381458,0.08687184,3511.6,3510.5,2.84859]
[1721571382265,0.08687184,3511.6,3510.6,2.8485]
[1721571382478,0.08687184,3511.6,3510.7,3.418129]
[1721571382677,0.08687184,3511.6,3510.7,0.569709]
[1721571382889,1.91402,3511.8,3510.4,2.84865]
[1721571383117,0.08684132,3511.5,3510.5,2.84858]
[1721571383424,0.63691111,3511.4,3510.7,2.84843]
[1721571383569,0.55,3511.3,3510.7,2.84843]
[1721571383966,0.08687965,3511.2,3510.8,2.84835]
[1721571384495,0.08687965,3511.2,3510.7,0.569702]
[1721571384496,1.91402,3511.8,3510.7,0.569702]
[1721571384795,0.55,3511.7,3510.7,0.569702]
[1721571385005,0.63702448,3511.7,3510.7,3.418092]
[1721571385194,3.63702448,3511.7,3510.7,0.569702]
[1721571385398,3.63702448,3511.7,3511.0,2.84818]
[1721571385776,0.63702448,3511.7,3511.1,2.84809]
[1721571386380,0.63702448,3511.7,3510.4,7.28]
[1721571386381,0.08702448,3511.7,3511.3,2.84794]
[1721571386583,0.08702448,3511.7,3511.2,2.84802]
[1721571386826,2.3241,3512.7,3511.2,2.84802]
[1721571386971,0.0871045,3511.6,3511.5,2.84777]
[1721571387174,2.3241,3512.7,3511.5,2.84777]
[1721571387480,2.3241,3512.7,3511.6,2.8477]
[1721571387709,0.0871431,3511.9,3511.6,2.8477]
[1721571388023,2.3241,3512.7,3511.6,2.8477]
[1721571388305,3.0,3512.6,3511.6,2.8477]
[1721571388619,0.08695762,3511.9,3511.6,2.8477]
[1721571389069,0.08695762,3511.9,3511.7,0.05694863]
[1721571389276,0.29798342,3512.8,3511.7,2.2657]
[1721571389601,0.1535473,3513.2,3512.6,2.84688]
[1721571389800,0.1535473,3513.2,3512.6,2.84682]
[1721571390007,0.06979629,3513.1,3512.6,2.84682]
[1721571390214,0.06979629,3513.1,3511.7,2.2657]
[1721571390374,0.1535473,3513.2,3511.7,2.32262929]
[1721571390582,0.1535473,3513.2,3511.7,2.2657]
[1721571390775,0.06979279,3513.1,3511.8,2.84752]
[1721571391014,0.1535473,3513.2,3511.4,5.2657]
[1721571391330,0.1535473,3513.2,3512.2,2.8472]
[1721571391505,0.06988994,3513.1,3512.2,2.8472]
[1721571391854,0.06988994,3513.1,3511.5,3.4028202]
[1721571391972,2.3241,3513.0,3511.8,2.84753]
[1721571392176,0.06994994,3512.9,3511.8,2.84753]
[1721571392512,0.32470966,3512.9,3511.8,2.84753]
[1721571392677,0.32470966,3512.9,3511.5,0.5550502]
[1721571392678,0.32470966,3512.9,3511.7,2.84762]
[1721571392877,0.32470966,3512.9,3511.8,2.84753]
[1721571392878,0.55,3512.8,3511.8,2.84753]
[1721571393411,0.06982808,3512.7,3511.8,2.84753]
[1721571393587,0.55,3512.6,3511.9,2.84743]
[1721571393798,0.55,3512.6,3511.8,2.84753]
[1721571394110,0.0698092,3512.5,3511.5,3.4027902]
[1721571394444,0.55,3512.4,3511.3,0.284802]
[1721571394630,2.3241,3512.3,3510.9,2.84819]
[1721571394917,0.06968798,3512.3,3511.0,0.0569527]
[1721571395117,0.06968798,3512.3,3511.1,2.2657]
[1721571395318,0.06968798,3512.3,3511.7,2.84754]
[1721571395522,2.3241,3512.8,3511.7,2.84754]
[1721571395678,2.3241,3512.8,3511.5,2.84775]
[1721571396019,0.06983971,3512.7,3511.6,2.8477]
[1721571396321,0.06983971,3512.7,3511.8,2.84754]
[1721571396477,3.0,3512.7,3511.7,2.84758]
[1721571396680,0.06982842,3512.6,3511.6,3.132475]
[1721571396982,0.55,3512.5,3511.6,0.284775]
[1721571397188,0.55,3512.5,3511.2,2.848]
[1721571397430,0.06962349,3512.4,3511.1,2.84806]
[1721571397614,0.55,3512.3,3511.1,2.84806]
[1721571397927,0.55,3512.3,3511.3,2.84787]
[1721571398086,0.55,3512.6,3511.3,2.84787]
[1721571398428,0.610651,3512.5,3511.7,2.84761]
[1721571398611,0.55,3512.4,3511.6,2.84763]
[1721571399000,0.06976328,3512.3,3511.6,2.84763]
[1721571399328,0.06976328,3512.3,3512.0,2.8473]
[1721571399846,0.1535473,3513.2,3512.3,2.84706]
[1721571400287,0.06986101,3513.1,3512.3,2.84706]
[1721571400488,0.64161184,3513.1,3512.3,2.84706]
[1721571400927,0.55,3513.0,3512.3,2.84706]
[1721571401127,0.55,3513.0,3512.4,2.84705]
[1721571401431,0.1535473,3513.2,3512.4,2.84705]
[1721571401432,0.0698654,3512.9,3512.4,2.84705]
[1721571401732,0.0698654,3512.9,3512.2,2.84717]
[1721571401913,0.1535473,3513.2,3511.8,2.84754]
[1721571402133,0.29767989,3512.9,3511.6,2.84767]
[1721571402306,0.29767989,3512.9,3511.3,3.860707]
[1721571402307,2.4941,3512.8,3511.3,3.860707]
[1721571402512,2.56400968,3512.8,3511.3,1.012787]
[1721571402707,2.56400968,3512.8,3510.9,2.3497]
[1721571403047,2.4941,3512.8,3510.9,2.3497]
[1721571403347,0.55,3512.7,3511.5,2.84778]
[1721571403508,3.61989823,3512.7,3511.5,2.84778]
[1721571403713,3.61989823,3512.7,3511.6,2.84769]
[1721571403908,0.64116781,3512.6,3511.6,2.84769]
[1721571404145,0.55,3512.5,3511.6,2.84769]
[1721571404352,0.61987376,3512.5,3510.9,2.3497]
[1721571404645,0.61987376,3512.5,3511.1,2.8481]
[1721571404849,0.42610416,3512.4,3511.1,0.569633]
[1721571405034,2.4941,3512.2,3511.1,0.569633]
[1721571405236,2.4941,3512.2,3510.9,2.84823]
[1721571405446,0.61976416,3512.1,3510.9,2.84823]
[1721571405755,3.61976416,3512.1,3510.7,2.84837]
[1721571405913,3.61976416,3512.1,3510.5,2.84859]
[1721571406117,3.61976416,3512.1,3510.3,2.3971]
[1721571406319,3.61976416,3512.1,3510.7,2.84843]
[1721571406539,0.61138642,3512.0,3510.7,2.84843]
[1721571406853,0.61967525,3511.9,3511.0,2.84814]
[1721571407026,0.61967525,3511.9,3511.2,2.84795]
[1721571407375,0.06967525,3511.9,3511.6,2.84768]
[1721571407849,2.3223,3512.6,3511.6,2.84768]
[1721571408034,0.53223,3512.5,3511.6,2.84768]
[1721571408242,3.60193909,3512.5,3511.4,2.84785]
[1721571408430,3.60193909,3512.5,3511.3,2.84794]
[1721571408627,2.3223,3512.3,3510.9,7.28]
[1721571408826,2.3223,3512.3,3511.0,2.84818]
[1721571408827,0.55,3512.2,3511.0,2.84818]
[1721571409041,4.62205177,3512.2,3511.0,6.994001]
[1721571409212,4.62205177,3512.2,3511.1,2.84808]
[1721571409719,4.62205177,3512.2,3511.0,1.297641]
[1721571409720,4.55242391,3512.2,3511.0,2.84817]
[1721571409914,0.06965407,3512.1,3510.9,7.28]
[1721571410153,0.55,3512.0,3510.9,10.12825]
[1721571410357,0.55,3512.0,3511.0,1.012825]
[1721571410358,0.06963757,3511.9,3511.0,1.012825]
[1721571410665,0.06963757,3511.9,3510.9,7.28]
[1721571410666,2.3223,3511.7,3510.9,7.28]
[1721571411013,0.61956766,3511.6,3510.9,7.28]
[1721571411564,3.61956766,3511.6,3510.9,7.28]
[1721571411714,3.61956766,3511.6,3511.0,2.84817]
[1721571412146,3.61956766,3511.6,3510.3,7.28]
[1721571412346,3.61956766,3511.6,3510.4,3.63622356]
[1721571412347,0.55,3511.6,3510.4,3.63622356]
[1721571412515,3.0,3511.5,3510.7,2.84842]
[1721571412723,0.06946317,3511.5,3510.7,2.84842]
[1721571412939,0.55,3511.4,3510.7,2.84842]
[1721571413225,0.0694443,3511.3,3510.8,2.84834]
[1721571413550,0.55,3511.2,3510.5,2.84858]
[1721571413750,0.55,3511.2,3510.8,2.84833]
[1721571414046,0.29779305,3511.6,3510.6,3.133328]
[1721571414047,0.55,3511.5,3510.6,3.133328]
[1721571414260,0.55,3511.5,3510.5,2.84858]
[1721571414261,0.55,3511.5,3510.1,1.48553419]
[1721571414566,0.06950905,3511.4,3510.6,2.84849]
[1721571414861,0.55,3511.3,3510.4,2.84867]
[1721571415013,0.55,3511.3,3510.7,2.84837]
[1721571415216,0.06946655,3511.2,3510.5,2.84858]
[1721571415441,0.55,3511.1,3510.6,3.56674642]
[1721571415657,0.55,3511.1,3510.7,2.84843]
[1721571415905,0.29779305,3511.6,3510.6,0.71828642]
[1721571416042,0.29779305,3511.6,3510.6,2.8485]
[1721571416255,0.06948804,3511.5,3510.6,2.8485]
[1721571417348,0.55,3511.4,3510.6,2.8485]
[1721571417662,0.55,3511.4,3510.1,1.48555818]
[1721571417663,0.06949681,3511.3,3510.7,2.84842]
[1721571417863,0.55,3511.2,3510.7,2.84842]
[1721571418066,0.55,3511.2,3510.7,3.41812]
[1721571418421,0.55,3511.5,3510.7,3.41812]
[1721571418732,0.55,3511.5,3510.7,0.5697]
[1721571419061,2.3012,3511.3,3510.3,2.84874]
[1721571419223,0.55,3511.2,3510.3,2.84874]
[1721571419415,0.61945978,3511.2,3510.3,2.84874]
[1721571419615,0.55,3511.2,3510.3,2.84874]
[1721571419834,0.55,3511.2,3510.4,2.84866]
[1721571420063,0.55,3511.2,3510.4,0.569756]
[1721571420219,0.55,3511.2,3510.6,2.84845]
[1721571420418,0.06944387,3511.1,3510.6,2.84845]
[1721571420658,0.55,3511.0,3510.5,2.84855]
[1721571420976,0.55,3511.0,3510.9,2.84827]
[1721571421116,0.55,3511.0,3510.7,2.84838]
[1721571421317,0.55,3511.0,3510.8,3.418034]
[1721571421520,0.06940326,3510.9,3510.8,0.569684]
[1721571421835,0.55,3510.9,3510.7,2.84842]
[1721571422031,0.55,3511.0,3510.7,2.84842]
[1721571422234,0.55,3511.0,3510.5,2.84859]
[1721571422435,0.06938321,3510.9,3510.4,2.84867]
[1721571422634,0.55,3510.8,3510.3,2.84875]
[1721571422962,0.55,3510.8,3510.4,0.284875]
[1721571423321,0.55,3510.8,3510.1,2.84891]
[1721571423947,0.55,3510.8,3509.9,2.84907]
[1721571423948,0.55,3510.8,3509.9,2.84904]
[1721571424323,0.55,3510.8,3509.9,2.84902]
[1721571424522,0.55,3510.8,3509.7,2.84924]
[1721571424523,0.0693679,3510.7,3509.7,2.84924]
[1721571424751,0.0693679,3510.7,3509.8,2.84914]
[1721571424752,0.55,3510.6,3509.8,2.84914]
[1721571424923,0.55,3510.6,3509.9,0.284914]
[1721571425130,3.55,3510.8,3509.5,7.28]
[1721571425365,0.06935098,3510.7,3509.7,2.84923]
[1721571425546,0.55,3510.6,3509.7,2.84923]
[1721571425866,0.06933344,3510.5,3509.4,5.25058]
[1721571426062,0.55,3510.4,3509.7,2.84923]
[1721571426369,0.55,3510.4,3509.5,2.8494]
[1721571426664,0.06929319,3510.3,3509.5,3.659405]
[1721571426873,0.55,3510.2,3509.5,3.659405]
[1721571427233,0.55,3510.2,3509.5,0.810005]
[1721571427440,0.55,3510.2,3509.3,2.84955]
[1721571427729,0.55,3510.2,3509.5,0.142]
[1721571428373,2.3012,3510.1,3509.5,0.142]
[1721571428533,0.06917084,3510.0,3509.5,0.142]
[1721571428724,0.61917084,3510.0,3509.5,0.142]
[1721571428933,2.3012,3509.8,3509.5,0.142]
[1721571429228,0.6168176,3509.7,3509.5,0.142]
[1721571429428,3.6168176,3509.7,3509.5,0.142]
[1721571430563,5.3012,3509.6,3509.5,0.142]
[1721571430749,2.8512,3509.6,3509.5,0.142]
[1721571430967,5.15067,3509.5,3508.0,7.28]
[1721571431170,0.0667119,3509.4,3507.2,7.28]
[1721571431343,2.3012,3509.3,3507.6,2.85092]
[1721571431537,0.61669378,3509.2,3507.6,2.85092]
[1721571431750,3.61669378,3509.2,3507.6,2.85092]
[1721571432069,3.61669378,3509.2,3507.7,0.285092]
[1721571432070,1.17673938,3509.1,3507.7,0.285092]
[1721571432274,0.55,3509.0,3507.9,2.85062]
[1721571432432,0.6165379,3509.0,3507.9,2.85062]
[1721571432633,0.6165379,3509.0,3507.7,3.135952]
[1721571432634,0.6165379,3509.0,3508.0,2.85062]
[1721571432878,0.6165379,3509.0,3507.8,2.85077]
[1721571433028,0.29802345,3508.9,3507.9,0.3135862]
[1721571433367,0.55,3508.8,3507.9,0.3135862]
[1721571433575,0.61645663,3508.8,3507.9,0.3135862]
[1721571434333,0.61645663,3508.8,3508.0,2.90762549]
[1721571434530,0.61645663,3508.8,3508.6,2.85012]
[1721571434734,0.29802345,3508.9,3508.0,2.45810549]
[1721571434735,0.29802345,3508.9,3508.7,6.270142]
[1721571434932,0.29802345,3508.9,3508.7,0.570042]
[1721571435368,0.29802345,3508.9,3508.3,2.85035]
[1721571435939,0.29802345,3508.9,3508.1,2.85053]
[1721571436140,0.29802345,3508.9,3508.0,2.4011]
[1721571436141,0.29802345,3508.9,3507.9,6.1642862]
[1721571436370,0.44002345,3508.9,3507.9,3.3135862]
[1721571436572,0.55,3508.8,3507.9,0.3135862]
[1721571436741,0.55,3508.8,3508.0,0.61643662]
[1721571437136,0.55,3508.8,3508.3,2.85038]